[Event "Early-Titled-Tuesday-Blitz-January-23-2024"]
[Site "Chess.com"]
[Date "2024.01.23"]
[Round "11"]
[White "alexrustemov"]
[Black "FoxOnTheRun97"]
[Result "1/2-1/2"]
[WhiteElo "2865"]
[BlackElo "2620"]
[TimeControl "180+1"]
[EndTime "10:09:06 PST"]
[Termination "Game drawn - insufficient material"]

1. d4 {[%clk 0:03:00.9]} 1... Nf6 {[%clk 0:02:59.2]} 2. c4 {[%clk 0:03:01.1]}
2... e6 {[%clk 0:02:59.8]} 3. Nf3 {[%clk 0:03:01.2]} 3... d5 {[%clk 0:02:59.4]}
4. cxd5 {[%clk 0:03:00.2]} 4... exd5 {[%clk 0:02:59.3]} 5. Nc3 {[%clk
0:03:00.7]} 5... c6 {[%clk 0:02:58.7]} 6. Bf4 {[%clk 0:03:00.7]} 6... Bd6 {[%clk
0:02:58.6]} 7. Bxd6 {[%clk 0:03:00.4]} 7... Qxd6 {[%clk 0:02:59.5]} 8. Qc2
{[%clk 0:02:58.5]} 8... Na6 {[%clk 0:02:49.1]} 9. e3 {[%clk 0:02:56.2]} 9... Nc7
{[%clk 0:02:47.8]} 10. h3 {[%clk 0:02:53.6]} 10... Bd7 {[%clk 0:02:39.5]} 11.
Bd3 {[%clk 0:02:53.8]} 11... b5 {[%clk 0:02:39]} 12. O-O {[%clk 0:02:48.4]}
12... O-O {[%clk 0:02:38.7]} 13. Rfc1 {[%clk 0:02:46.3]} 13... a5 {[%clk
0:02:37.3]} 14. a4 {[%clk 0:02:39.2]} 14... b4 {[%clk 0:02:22.6]} 15. Nb1 {[%clk
0:02:39.2]} 15... Rfc8 {[%clk 0:02:17.1]} 16. Nbd2 {[%clk 0:02:39.2]} 16... Ne6
{[%clk 0:02:14.1]} 17. Nb3 {[%clk 0:02:39.3]} 17... Be8 {[%clk 0:02:08.9]} 18.
Nc5 {[%clk 0:02:38.2]} 18... Nd7 {[%clk 0:02:04.1]} 19. Bxh7+ {[%clk 0:02:33.3]}
19... Kf8 {[%clk 0:02:02.1]} 20. Nxd7+ {[%clk 0:02:24.2]} 20... Bxd7 {[%clk
0:02:03]} 21. Bf5 {[%clk 0:02:23.8]} 21... c5 {[%clk 0:01:55.9]} 22. Bxe6 {[%clk
0:02:16.1]} 22... cxd4 {[%clk 0:01:55.5]} 23. Qh7 {[%clk 0:02:07.4]} 23... Bxe6
{[%clk 0:01:40.1]} 24. Nxd4 {[%clk 0:02:05.7]} 24... g6 {[%clk 0:01:02.4]} 25.
Qh6+ {[%clk 0:01:59.8]} 25... Kg8 {[%clk 0:00:55.9]} 26. h4 {[%clk 0:01:50.3]}
26... Qe5 {[%clk 0:00:41.5]} 27. Qg5 {[%clk 0:01:37.8]} 27... Qxg5 {[%clk
0:00:39.2]} 28. hxg5 {[%clk 0:01:38.7]} 28... Kf8 {[%clk 0:00:38]} 29. Nb3
{[%clk 0:01:28.3]} 29... Rc4 {[%clk 0:00:31.7]} 30. Nd2 {[%clk 0:01:26.7]} 30...
Rcc8 {[%clk 0:00:29.5]} 31. Rxc8+ {[%clk 0:01:23.9]} 31... Rxc8 {[%clk
0:00:29.6]} 32. Nb3 {[%clk 0:01:24.5]} 32... Rc2 {[%clk 0:00:26.1]} 33. Rb1
{[%clk 0:01:19.4]} 33... Bd7 {[%clk 0:00:15]} 34. Nd4 {[%clk 0:01:14]} 34... Rc5
{[%clk 0:00:12.4]} 35. b3 {[%clk 0:01:11.3]} 35... Ke7 {[%clk 0:00:12.7]} 36.
Kf1 {[%clk 0:01:05]} 36... Bf5 {[%clk 0:00:11.4]} 37. Rb2 {[%clk 0:00:58.1]}
37... Bd3+ {[%clk 0:00:08.8]} 38. Ke1 {[%clk 0:00:58.2]} 38... Kd6 {[%clk
0:00:07.8]} 39. Kd2 {[%clk 0:00:58.4]} 39... Bf1 {[%clk 0:00:05.1]} 40. g3
{[%clk 0:00:55.6]} 40... Rc8 {[%clk 0:00:04.4]} 41. Rc2 {[%clk 0:00:53.6]} 41...
Rxc2+ {[%clk 0:00:04]} 42. Kxc2 {[%clk 0:00:52]} 42... Bg2 {[%clk 0:00:03.6]}
43. f3 {[%clk 0:00:49.8]} 43... Bf1 {[%clk 0:00:03.3]} 44. Kd2 {[%clk
0:00:49.7]} 44... Ba6 {[%clk 0:00:03.3]} 45. g4 {[%clk 0:00:36.9]} 45... Bc8
{[%clk 0:00:03.7]} 46. Ne2 {[%clk 0:00:30.6]} 46... Kc5 {[%clk 0:00:03.6]} 47.
Nf4 {[%clk 0:00:29.6]} 47... Kd6 {[%clk 0:00:03.8]} 48. Nd3 {[%clk 0:00:27.6]}
48... Ba6 {[%clk 0:00:03.7]} 49. Nf2 {[%clk 0:00:27.1]} 49... Kc5 {[%clk
0:00:04]} 50. f4 {[%clk 0:00:26.4]} 50... Kd6 {[%clk 0:00:03.9]} 51. Nh1 {[%clk
0:00:18.2]} 51... Kc5 {[%clk 0:00:04.3]} 52. Ng3 {[%clk 0:00:17]} 52... Bc8
{[%clk 0:00:04.6]} 53. f5 {[%clk 0:00:16.9]} 53... Kd6 {[%clk 0:00:04.7]} 54.
Kd3 {[%clk 0:00:15]} 54... Ke5 {[%clk 0:00:05.1]} 55. fxg6 {[%clk 0:00:11.2]}
55... fxg6 {[%clk 0:00:06]} 56. e4 {[%clk 0:00:09.3]} 56... d4 {[%clk
0:00:05.6]} 57. Nf5 {[%clk 0:00:03.8]} 57... gxf5 {[%clk 0:00:04.3]} 58. exf5
{[%clk 0:00:04.2]} 58... Ba6+ {[%clk 0:00:04.9]} 59. Kd2 {[%clk 0:00:04.5]}
59... Bc8 {[%clk 0:00:04.4]} 60. g6 {[%clk 0:00:04.6]} 60... Kf6 {[%clk
0:00:04.4]} 61. Kd3 {[%clk 0:00:05.2]} 61... Ba6+ {[%clk 0:00:02.4]} 62. Kxd4
{[%clk 0:00:05.7]} 62... Be2 {[%clk 0:00:02.8]} 63. Kc5 {[%clk 0:00:04]} 63...
Bd1 {[%clk 0:00:02.5]} 64. Kb5 {[%clk 0:00:04.1]} 64... Bxb3 {[%clk 0:00:03]}
65. Kxa5 {[%clk 0:00:04.6]} 65... Bd1 {[%clk 0:00:02.2]} 66. Kxb4 {[%clk
0:00:03.9]} 66... Bxg4 {[%clk 0:00:02.5]} 67. a5 {[%clk 0:00:03.3]} 67... Bxf5
{[%clk 0:00:03]} 68. a6 {[%clk 0:00:03.6]} 68... Be4 {[%clk 0:00:03.6]} 69. a7
{[%clk 0:00:03.7]} 69... Kxg6 {[%clk 0:00:04]} 70. Kc5 {[%clk 0:00:03.8]} 70...
Kf5 {[%clk 0:00:04.5]} 71. Kd6 {[%clk 0:00:04.1]} 71... Kf6 {[%clk 0:00:04.7]}
72. Kc7 {[%clk 0:00:05]} 72... Ke5 {[%clk 0:00:05]} 73. Kb8 {[%clk 0:00:05.9]}
73... Kd6 {[%clk 0:00:05.5]} 74. a8=Q {[%clk 0:00:05.2]} 74... Bxa8 {[%clk
0:00:05.8]} 1/2-1/2

[Event "Early-Titled-Tuesday-Blitz-January-23-2024"]
[Site "Chess.com"]
[Date "2024.01.23"]
[Round "11"]
[White "Sanan_Sjugirov"]
[Black "platy3"]
[Result "1-0"]
[WhiteElo "3013"]
[BlackElo "2870"]
[TimeControl "180+1"]
[EndTime "10:09:07 PST"]
[Termination "Sanan_Sjugirov won by resignation"]

1. Nf3 {[%clk 0:03:00.9]} 1... d5 {[%clk 0:02:55.9]} 2. g3 {[%clk 0:03:01.1]}
2... Nf6 {[%clk 0:02:54.4]} 3. Bg2 {[%clk 0:03:01.6]} 3... e6 {[%clk 0:02:55]}
4. O-O {[%clk 0:03:01.7]} 4... Be7 {[%clk 0:02:55.8]} 5. c4 {[%clk 0:03:02.2]}
5... O-O {[%clk 0:02:55.1]} 6. b3 {[%clk 0:03:02.6]} 6... b6 {[%clk 0:02:52]} 7.
cxd5 {[%clk 0:03:02]} 7... Nxd5 {[%clk 0:02:50.7]} 8. Bb2 {[%clk 0:03:01.5]}
8... Bb7 {[%clk 0:02:50.6]} 9. d4 {[%clk 0:03:00.9]} 9... Nd7 {[%clk 0:02:50.8]}
10. Re1 {[%clk 0:02:53.8]} 10... c5 {[%clk 0:02:47.6]} 11. e4 {[%clk 0:02:52.8]}
11... N5f6 {[%clk 0:02:47.9]} 12. Nc3 {[%clk 0:02:53.3]} 12... a6 {[%clk
0:02:36.7]} 13. d5 {[%clk 0:02:47.6]} 13... exd5 {[%clk 0:02:35.8]} 14. e5
{[%clk 0:02:47.9]} 14... Ne8 {[%clk 0:02:26.2]} 15. Nxd5 {[%clk 0:02:47.2]}
15... Nc7 {[%clk 0:02:27]} 16. Nxe7+ {[%clk 0:02:33.5]} 16... Qxe7 {[%clk
0:02:27]} 17. Qd6 {[%clk 0:02:34.2]} 17... Qxd6 {[%clk 0:02:22.9]} 18. exd6
{[%clk 0:02:35.1]} 18... Ne6 {[%clk 0:02:23.4]} 19. Ne5 {[%clk 0:02:29.7]} 19...
Nxe5 {[%clk 0:01:29.6]} 20. Bxb7 {[%clk 0:02:29.1]} 20... Ra7 {[%clk 0:01:30.2]}
21. Be4 {[%clk 0:02:07.5]} 21... Nd4 {[%clk 0:01:30.5]} 22. Bxd4 {[%clk
0:02:04.4]} 22... cxd4 {[%clk 0:01:30.6]} 23. Bxh7+ {[%clk 0:02:05]} 23... Kxh7
{[%clk 0:01:30.6]} 24. Rxe5 {[%clk 0:02:05.9]} 24... Rd7 {[%clk 0:01:30.9]} 25.
Rd5 {[%clk 0:02:04.7]} 25... Rfd8 {[%clk 0:01:30.8]} 26. Rxd4 {[%clk 0:02:03.6]}
26... Rxd6 {[%clk 0:01:31.3]} 27. Rh4+ {[%clk 0:01:50.7]} 27... Rh6 {[%clk
0:01:20.9]} 28. Rf4 {[%clk 0:01:50.8]} 28... Rd7 {[%clk 0:01:08.7]} 29. Rc1
{[%clk 0:01:49.4]} 29... Re6 {[%clk 0:01:08.3]} 30. a4 {[%clk 0:01:46.8]} 30...
g6 {[%clk 0:01:08.1]} 31. h4 {[%clk 0:01:44.4]} 31... Kg7 {[%clk 0:01:08.1]} 32.
Rc3 {[%clk 0:01:41.5]} 32... Red6 {[%clk 0:00:59.2]} 33. Rcf3 {[%clk 0:01:23.5]}
33... b5 {[%clk 0:00:48.5]} 34. axb5 {[%clk 0:01:22.5]} 34... axb5 {[%clk
0:00:49.4]} 35. Kg2 {[%clk 0:01:16.1]} 35... Rc7 {[%clk 0:00:47.7]} 36. h5
{[%clk 0:00:56.3]} 36... gxh5 {[%clk 0:00:47.4]} 37. Rf5 {[%clk 0:00:56.3]}
37... b4 {[%clk 0:00:48]} 38. R3f4 {[%clk 0:00:46.2]} 38... Rb6 {[%clk
0:00:44.4]} 39. Rxh5 {[%clk 0:00:42.5]} 39... Rc3 {[%clk 0:00:44.2]} 40. Rhf5
{[%clk 0:00:42.8]} 40... Rb7 {[%clk 0:00:44]} 41. Rf3 {[%clk 0:00:43.4]} 41...
Rbc7 {[%clk 0:00:41.2]} 42. R5f4 {[%clk 0:00:32.1]} 42... Rxf3 {[%clk
0:00:36.2]} 43. Rxf3 {[%clk 0:00:33]} 43... Rc3 {[%clk 0:00:36.1]} 44. Re3
{[%clk 0:00:33.4]} 44... f5 {[%clk 0:00:28.9]} 45. Kf3 {[%clk 0:00:31.5]} 45...
Rc2 {[%clk 0:00:29.3]} 46. Rd3 {[%clk 0:00:14.3]} 46... Kf6 {[%clk 0:00:28.8]}
47. Ke3 {[%clk 0:00:15]} 47... Ke6 {[%clk 0:00:22.9]} 48. f3 {[%clk 0:00:14.5]}
48... Rg2 {[%clk 0:00:20.3]} 49. Kf4 {[%clk 0:00:14.6]} 49... Rb2 {[%clk
0:00:17.1]} 50. Re3+ {[%clk 0:00:14.9]} 50... Kf6 {[%clk 0:00:16.4]} 51. Re5
{[%clk 0:00:14.6]} 51... Rxb3 {[%clk 0:00:16.9]} 52. Rxf5+ {[%clk 0:00:15.2]}
52... Ke6 {[%clk 0:00:17.1]} 53. Rb5 {[%clk 0:00:16]} 53... Rb1 {[%clk
0:00:16.1]} 54. g4 {[%clk 0:00:16.4]} 54... b3 {[%clk 0:00:16.8]} 55. g5 {[%clk
0:00:14.8]} 55... b2 {[%clk 0:00:13.4]} 56. Rb6+ {[%clk 0:00:15.3]} 56... Kf7
{[%clk 0:00:13.9]} 57. Rb4 {[%clk 0:00:08.9]} 57... Kg6 {[%clk 0:00:13.9]} 58.
Rb6+ {[%clk 0:00:08.8]} 58... Kg7 {[%clk 0:00:12.8]} 59. Rb4 {[%clk 0:00:02.6]}
59... Kg6 {[%clk 0:00:12.8]} 60. Rb3 {[%clk 0:00:03]} 60... Kg7 {[%clk 0:00:13]}
61. Kf5 {[%clk 0:00:02.3]} 61... Rf1 {[%clk 0:00:12.1]} 62. Rb7+ {[%clk
0:00:02.8]} 62... Kf8 {[%clk 0:00:07.3]} 63. Rxb2 {[%clk 0:00:02.5]} 63... Rxf3+
{[%clk 0:00:07.7]} 64. Kg6 {[%clk 0:00:03.4]} 64... Rg3 {[%clk 0:00:02.7]} 65.
Rb5 {[%clk 0:00:02.2]} 65... Ke7 {[%clk 0:00:02.2]} 66. Kg7 {[%clk 0:00:02.4]}
66... Rg1 {[%clk 0:00:01.5]} 67. g6 {[%clk 0:00:02.8]} 67... Rg2 {[%clk
0:00:02]} 68. Re5+ {[%clk 0:00:03]} 68... Kd6 {[%clk 0:00:02.1]} 69. Re4 {[%clk
0:00:03.1]} 69... Kd7 {[%clk 0:00:02.7]} 70. Kf7 {[%clk 0:00:02.4]} 70... Rf2+
{[%clk 0:00:02.5]} 71. Kg8 {[%clk 0:00:02.7]} 71... Rf1 {[%clk 0:00:03.2]} 72.
g7 {[%clk 0:00:03]} 72... Re1 {[%clk 0:00:03.9]} 73. Rxe1 {[%clk 0:00:02.4]} 1-0

[Event "Early-Titled-Tuesday-Blitz-January-23-2024"]
[Site "Chess.com"]
[Date "2024.01.23"]
[Round "11"]
[White "Roman_Ovetchkin"]
[Black "margarita_2703"]
[Result "1-0"]
[WhiteElo "2637"]
[BlackElo "2312"]
[TimeControl "180+1"]
[EndTime "10:09:10 PST"]
[Termination "Roman_Ovetchkin won on time"]

1. d4 {[%clk 0:02:52.4]} 1... d5 {[%clk 0:02:55.3]} 2. c4 {[%clk 0:02:52.4]}
2... e6 {[%clk 0:02:49.9]} 3. Nf3 {[%clk 0:02:51.7]} 3... Nf6 {[%clk 0:01:56.5]}
4. g3 {[%clk 0:02:50.5]} 4... Be7 {[%clk 0:01:50.1]} 5. Bg2 {[%clk 0:02:50.2]}
5... O-O {[%clk 0:01:50.7]} 6. Qc2 {[%clk 0:02:50.5]} 6... dxc4 {[%clk
0:01:42.1]} 7. Qxc4 {[%clk 0:02:49.3]} 7... a6 {[%clk 0:01:40.3]} 8. Bf4 {[%clk
0:02:49.1]} 8... Nd5 {[%clk 0:01:21]} 9. Bd2 {[%clk 0:02:47.7]} 9... b5 {[%clk
0:01:16]} 10. Qc2 {[%clk 0:02:44.8]} 10... Bb7 {[%clk 0:01:09.6]} 11. O-O {[%clk
0:02:44.8]} 11... Nd7 {[%clk 0:01:04.8]} 12. Ba5 {[%clk 0:02:41.8]} 12... Rc8
{[%clk 0:01:02.5]} 13. a3 {[%clk 0:02:39.7]} 13... Qe8 {[%clk 0:00:59.9]} 14. b4
{[%clk 0:02:31.9]} 14... Bf6 {[%clk 0:00:54.3]} 15. e4 {[%clk 0:02:10.9]} 15...
N5b6 {[%clk 0:00:52.2]} 16. Nbd2 {[%clk 0:01:18]} 16... c6 {[%clk 0:00:35.2]}
17. Bxb6 {[%clk 0:01:14.2]} 17... Nxb6 {[%clk 0:00:33.6]} 18. Nb3 {[%clk
0:01:14.2]} 18... Be7 {[%clk 0:00:27.5]} 19. Na5 {[%clk 0:01:05.5]} 19... Ba8
{[%clk 0:00:27.6]} 20. Rac1 {[%clk 0:01:03.7]} 20... f6 {[%clk 0:00:24.8]} 21.
Bh3 {[%clk 0:01:01.8]} 21... Qd7 {[%clk 0:00:23.2]} 22. Qa2 {[%clk 0:01:01.9]}
22... Kf7 {[%clk 0:00:21.2]} 23. Rfd1 {[%clk 0:00:58.2]} 23... Rfd8 {[%clk
0:00:20.9]} 24. Bg4 {[%clk 0:00:53.8]} 24... g6 {[%clk 0:00:20.6]} 25. h4 {[%clk
0:00:53.9]} 25... Qd6 {[%clk 0:00:19.9]} 26. Kg2 {[%clk 0:00:51.2]} 26... h5
{[%clk 0:00:20]} 27. Bh3 {[%clk 0:00:51.3]} 27... Nd7 {[%clk 0:00:20.1]} 28. e5
{[%clk 0:00:46.3]} 28... Qd5 {[%clk 0:00:19.3]} 29. Qxd5 {[%clk 0:00:41.6]}
29... cxd5 {[%clk 0:00:20.2]} 30. exf6 {[%clk 0:00:40.8]} 30... Bxf6 {[%clk
0:00:20]} 31. Re1 {[%clk 0:00:40.4]} 31... Nf8 {[%clk 0:00:19.5]} 32. Ng5+
{[%clk 0:00:34.8]} 32... Bxg5 {[%clk 0:00:19.2]} 33. hxg5 {[%clk 0:00:35.7]}
33... Rc4 {[%clk 0:00:17.8]} 34. Nxc4 {[%clk 0:00:30.1]} 34... dxc4+ {[%clk
0:00:18.7]} 35. f3 {[%clk 0:00:30.6]} 35... Rxd4 {[%clk 0:00:18.7]} 36. Red1
{[%clk 0:00:30.6]} 36... e5 {[%clk 0:00:18.9]} 37. Kf2 {[%clk 0:00:28.1]} 37...
Ke7 {[%clk 0:00:16.7]} 38. Ke3 {[%clk 0:00:28.4]} 38... Rxd1 {[%clk 0:00:15.7]}
39. Rxd1 {[%clk 0:00:28.9]} 39... Bc6 {[%clk 0:00:14]} 40. f4 {[%clk 0:00:27.5]}
40... exf4+ {[%clk 0:00:13.1]} 41. gxf4 {[%clk 0:00:27.7]} 41... Bd7 {[%clk
0:00:09.6]} 42. Bxd7 {[%clk 0:00:24.8]} 42... Nxd7 {[%clk 0:00:10.5]} 43. f5
{[%clk 0:00:20.3]} 43... gxf5 {[%clk 0:00:10.5]} 44. Kf4 {[%clk 0:00:20.7]}
44... Nb6 {[%clk 0:00:08.1]} 45. Kxf5 {[%clk 0:00:19.7]} 45... Na4 {[%clk
0:00:06.7]} 46. Kg6 {[%clk 0:00:15.8]} 46... Nb2 {[%clk 0:00:06.1]} 47. Re1+
{[%clk 0:00:15.3]} 47... Kf8 {[%clk 0:00:05.6]} 48. Kh7 {[%clk 0:00:15.6]} 48...
Nd3 {[%clk 0:00:06.5]} 49. g6 {[%clk 0:00:15.7]} 49... Nxe1 {[%clk 0:00:05.5]}
50. g7+ {[%clk 0:00:16]} 50... Ke7 {[%clk 0:00:06.4]} 51. g8=Q {[%clk
0:00:16.9]} 51... Nd3 {[%clk 0:00:06.6]} 52. Qg7+ {[%clk 0:00:14.6]} 52... Kd6
{[%clk 0:00:06.3]} 53. Qd4+ {[%clk 0:00:14.6]} 53... Kc6 {[%clk 0:00:06.5]} 54.
Kg6 {[%clk 0:00:11.3]} 54... h4 {[%clk 0:00:06.2]} 55. Qxh4 {[%clk 0:00:11.2]}
55... Ne5+ {[%clk 0:00:06.2]} 56. Kf5 {[%clk 0:00:11.2]} 56... Nd7 {[%clk
0:00:02.3]} 57. Ke6 {[%clk 0:00:09.2]} 57... Nb6 {[%clk 0:00:02.1]} 58. Qe4+
{[%clk 0:00:08.3]} 58... Kc7 {[%clk 0:00:02.3]} 59. Qd4 {[%clk 0:00:08.4]} 59...
Kc6 {[%clk 0:00:01.6]} 60. Qc5+ {[%clk 0:00:08]} 60... Kb7 {[%clk 0:00:02]} 61.
Kd6 {[%clk 0:00:07.7]} 61... Nc8+ {[%clk 0:00:02.2]} 62. Kd7 {[%clk 0:00:08.1]}
62... Nb6+ {[%clk 0:00:02.4]} 63. Kd8 {[%clk 0:00:08.5]} 63... Na8 {[%clk
0:00:01.2]} 64. Qd5+ {[%clk 0:00:06.9]} 64... Ka7 {[%clk 0:00:01.4]} 65. Qc6
{[%clk 0:00:06.9]} 65... Nb6 {[%clk 0:00:01.1]} 66. Kc7 {[%clk 0:00:05.4]} 1-0

[Event "Early-Titled-Tuesday-Blitz-January-23-2024"]
[Site "Chess.com"]
[Date "2024.01.23"]
[Round "11"]
[White "KVAIDAN"]
[Black "Actuary44"]
[Result "1/2-1/2"]
[WhiteElo "2363"]
[BlackElo "2485"]
[TimeControl "180+1"]
[EndTime "10:09:46 PST"]
[Termination "Game drawn by repetition"]

1. f4 {[%clk 0:03:00.9]} 1... b6 {[%clk 0:02:58.1]} 2. Nf3 {[%clk 0:03:00.9]}
2... Bb7 {[%clk 0:02:58.6]} 3. d3 {[%clk 0:03:00.6]} 3... e6 {[%clk 0:02:59.2]}
4. e4 {[%clk 0:03:00.8]} 4... Nf6 {[%clk 0:02:59.9]} 5. Be2 {[%clk 0:03:01.1]}
5... d5 {[%clk 0:03:00.3]} 6. O-O {[%clk 0:03:01.6]} 6... c5 {[%clk 0:03:00.2]}
7. e5 {[%clk 0:03:01.5]} 7... Nfd7 {[%clk 0:03:00.2]} 8. Nc3 {[%clk 0:03:01]}
8... Nc6 {[%clk 0:03:00.5]} 9. Qe1 {[%clk 0:02:56.6]} 9... Qc7 {[%clk
0:03:00.5]} 10. Qg3 {[%clk 0:02:55.2]} 10... a6 {[%clk 0:02:59.9]} 11. a4 {[%clk
0:02:53.7]} 11... h6 {[%clk 0:02:58.4]} 12. Nd1 {[%clk 0:02:45.2]} 12... O-O-O
{[%clk 0:02:56.7]} 13. c3 {[%clk 0:02:45.6]} 13... f5 {[%clk 0:02:55.9]} 14. Qg6
{[%clk 0:02:43.3]} 14... Ne7 {[%clk 0:02:41]} 15. Qxe6 {[%clk 0:02:40.9]} 15...
d4 {[%clk 0:02:20.2]} 16. cxd4 {[%clk 0:02:34.7]} 16... cxd4 {[%clk 0:02:06.9]}
17. a5 {[%clk 0:02:29.8]} 17... Bd5 {[%clk 0:01:58.8]} 18. axb6 {[%clk
0:02:18.6]} 18... Qc5 {[%clk 0:01:22.9]} 19. b7+ {[%clk 0:02:10.5]} 19... Bxb7
{[%clk 0:01:18]} 20. Qa2 {[%clk 0:02:00.1]} 20... g5 {[%clk 0:01:11.5]} 21. b4
{[%clk 0:01:59]} 21... Qb6 {[%clk 0:01:06.3]} 22. Bb2 {[%clk 0:01:56.2]} 22...
Nc6 {[%clk 0:01:02.2]} 23. e6 {[%clk 0:01:47]} 23... Nf6 {[%clk 0:00:58.2]} 24.
Qc4 {[%clk 0:01:41.3]} 24... g4 {[%clk 0:00:51.1]} 25. Nxd4 {[%clk 0:01:34.8]}
25... Rxd4 {[%clk 0:00:50.8]} 26. Bxd4 {[%clk 0:01:33.4]} 26... Qxd4+ {[%clk
0:00:51.7]} 27. Qxd4 {[%clk 0:01:25.4]} 27... Nxd4 {[%clk 0:00:52.6]} 28. Nc3
{[%clk 0:01:22]} 28... Bxb4 {[%clk 0:00:51.3]} 29. Rfc1 {[%clk 0:01:21.9]} 29...
Kd8 {[%clk 0:00:48.4]} 30. Bf1 {[%clk 0:01:20.1]} 30... Nxe6 {[%clk 0:00:43]}
31. d4 {[%clk 0:01:14.1]} 31... Ke7 {[%clk 0:00:37.1]} 32. Bxa6 {[%clk
0:01:11.5]} 32... Ra8 {[%clk 0:00:23.7]} 33. Bxb7 {[%clk 0:01:11.5]} 33... Rxa1
{[%clk 0:00:24.6]} 34. Rxa1 {[%clk 0:01:10.4]} 34... Bxc3 {[%clk 0:00:25.1]} 35.
Ra6 {[%clk 0:01:03.1]} 35... Bxd4+ {[%clk 0:00:25]} 36. Kf1 {[%clk 0:01:01.5]}
36... Nxf4 {[%clk 0:00:24.7]} 37. g3 {[%clk 0:00:58.4]} 37... Nd3 {[%clk
0:00:22.1]} 38. Bc8 {[%clk 0:00:55.5]} 38... f4 {[%clk 0:00:19.8]} 39. Ke2
{[%clk 0:00:48.2]} 39... Nb4 {[%clk 0:00:14.9]} 40. Re6+ {[%clk 0:00:46.6]}
40... Kf7 {[%clk 0:00:14.7]} 41. gxf4 {[%clk 0:00:46]} 41... Nbd5 {[%clk
0:00:15.1]} 42. Rd6 {[%clk 0:00:40.8]} 42... Nxf4+ {[%clk 0:00:14]} 43. Kf1
{[%clk 0:00:41]} 43... Be5 {[%clk 0:00:14]} 44. Ra6 {[%clk 0:00:40.1]} 44...
N4d5 {[%clk 0:00:13.9]} 45. Be6+ {[%clk 0:00:39]} 45... Ke7 {[%clk 0:00:12.8]}
46. Bxd5 {[%clk 0:00:39.1]} 46... Nxd5 {[%clk 0:00:13.7]} 47. Rxh6 {[%clk
0:00:39.2]} 47... Nf6 {[%clk 0:00:12.7]} 48. Ke2 {[%clk 0:00:38.3]} 48... Ke6
{[%clk 0:00:13.1]} 49. Ke3 {[%clk 0:00:38.4]} 49... Kf5 {[%clk 0:00:13.6]} 50.
Kd3 {[%clk 0:00:35.8]} 50... Bf4 {[%clk 0:00:13.5]} 51. Rh8 {[%clk 0:00:34.7]}
51... Nd5 {[%clk 0:00:07.6]} 52. Rh5+ {[%clk 0:00:31.9]} 52... Bg5 {[%clk
0:00:05.3]} 53. Kd4 {[%clk 0:00:30.5]} 53... Nf4 {[%clk 0:00:05.3]} 54. Rh8
{[%clk 0:00:29.8]} 54... Ne6+ {[%clk 0:00:05.7]} 55. Kd5 {[%clk 0:00:29.2]}
55... Nf4+ {[%clk 0:00:06]} 56. Kc4 {[%clk 0:00:29.1]} 56... Ke4 {[%clk
0:00:05.4]} 57. Rg8 {[%clk 0:00:26.7]} 57... Ne6 {[%clk 0:00:05.4]} 58. Rg6
{[%clk 0:00:25.5]} 58... Kf5 {[%clk 0:00:05.4]} 59. Rg8 {[%clk 0:00:25.5]} 59...
Bf4 {[%clk 0:00:05.6]} 60. Rh8 {[%clk 0:00:25.8]} 60... Ng5 {[%clk 0:00:05.3]}
61. Kd5 {[%clk 0:00:25.6]} 61... Nf3 {[%clk 0:00:04.8]} 62. Rf8+ {[%clk
0:00:25.1]} 62... Kg5 {[%clk 0:00:05.4]} 63. Ke4 {[%clk 0:00:24.4]} 63... Bxh2
{[%clk 0:00:05]} 64. Rg8+ {[%clk 0:00:23.1]} 64... Kh4 {[%clk 0:00:05]} 65. Kf5
{[%clk 0:00:23.4]} 65... Ne5 {[%clk 0:00:04.6]} 66. Rh8+ {[%clk 0:00:19.8]}
66... Kg3 {[%clk 0:00:03.7]} 67. Kxe5 {[%clk 0:00:20.4]} 67... Bg1 {[%clk
0:00:01.6]} 68. Ke4 {[%clk 0:00:20.5]} 68... Kf2 {[%clk 0:00:01.9]} 69. Rf8+
{[%clk 0:00:20.6]} 69... Kg2 {[%clk 0:00:02.1]} 70. Kf4 {[%clk 0:00:20.8]} 70...
g3 {[%clk 0:00:03]} 71. Rg8 {[%clk 0:00:20.8]} 71... Bf2 {[%clk 0:00:03.9]} 72.
Kg4 {[%clk 0:00:20.7]} 72... Kf1 {[%clk 0:00:04.5]} 73. Kf3 {[%clk 0:00:20.9]}
73... Ke1 {[%clk 0:00:05]} 74. Rc8 {[%clk 0:00:20]} 74... Kd2 {[%clk 0:00:05.3]}
75. Rd8+ {[%clk 0:00:19.8]} 75... Kc3 {[%clk 0:00:05.8]} 76. Rg8 {[%clk
0:00:20]} 76... Kd4 {[%clk 0:00:06.1]} 77. Rg4+ {[%clk 0:00:19.1]} 77... Ke5
{[%clk 0:00:06.5]} 78. Rg5+ {[%clk 0:00:18.5]} 78... Kf6 {[%clk 0:00:07]} 79.
Rg4 {[%clk 0:00:18.2]} 79... Ke5 {[%clk 0:00:07.5]} 80. Rg8 {[%clk 0:00:17.3]}
80... Kf6 {[%clk 0:00:08]} 81. Kf4 {[%clk 0:00:16.8]} 81... Ke6 {[%clk
0:00:08.4]} 82. Rg6+ {[%clk 0:00:14]} 82... Kf7 {[%clk 0:00:08.7]} 83. Kf5
{[%clk 0:00:14.5]} 83... Ke7 {[%clk 0:00:09.3]} 84. Ke5 {[%clk 0:00:13.4]} 84...
Kd7 {[%clk 0:00:09.7]} 85. Kd5 {[%clk 0:00:13.5]} 85... Ke7 {[%clk 0:00:10]} 86.
Ke5 {[%clk 0:00:13.8]} 86... Kd7 {[%clk 0:00:10.3]} 87. Rg4 {[%clk 0:00:13.3]}
87... Ke7 {[%clk 0:00:10.6]} 88. Rg7+ {[%clk 0:00:13]} 88... Kf8 {[%clk
0:00:11.1]} 89. Rg4 {[%clk 0:00:11]} 89... Kf7 {[%clk 0:00:11.3]} 90. Rg5 {[%clk
0:00:10.4]} 90... Ke7 {[%clk 0:00:10.4]} 91. Rg7+ {[%clk 0:00:10.2]} 91... Kf8
{[%clk 0:00:10.8]} 92. Rg4 {[%clk 0:00:09.7]} 92... Kf7 {[%clk 0:00:11.3]} 93.
Rf4+ {[%clk 0:00:08.6]} 93... Ke7 {[%clk 0:00:11.5]} 94. Rg4 {[%clk 0:00:08.7]}
94... Kf7 {[%clk 0:00:11.9]} 1/2-1/2